bitfinex/quotes_ETHUSD_20250411
["timestamp","ask_amount","ask_price","bid_price","bid_amount"]
[1744333475432,8.26029,1510.2,1509.8,13.52344268]
[1744333475637,6.62169,1510.2,1509.9,9.62288]
[1744333476369,6.62169,1510.2,1509.9,3.0]
[1744333476869,6.62207,1510.1,1509.9,3.0]
[1744333477068,6.62169,1510.2,1509.9,3.0]
[1744333477576,6.62223,1510.1,1509.9,3.0]
[1744333477873,13.24376,1510.2,1509.9,3.0]
[1744333478462,6.62213,1510.1,1509.9,3.0]
[1744333478971,13.24353,1510.2,1509.9,3.0]
[1744333479275,6.62251,1510.0,1509.9,3.0]
[1744333479604,6.62295,1509.9,1509.8,4.95704153]
[1744333479870,6.62295,1509.9,1509.6,13.67865691]
[1744333480274,6.62295,1509.9,1509.6,13.67872691]
[1744333481243,6.62295,1509.9,1509.6,14.86386451]
[1744333481470,6.62295,1509.9,1509.6,8.23960451]
[1744333481776,6.62295,1509.9,1509.6,7.05446691]
[1744333482166,6.62295,1509.9,1509.6,13.67868691]
[1744333483242,6.62342,1509.8,1509.6,3.48922538]
[1744333483448,13.24628,1509.9,1509.6,3.48922538]
[1744333483651,13.24628,1509.9,1509.1,11.73250812]
[1744333483652,6.62446,1509.6,1509.1,6.46124153]
[1744333483898,6.626,1509.3,1509.1,0.49927841]
[1744333484183,6.6262,1509.2,1509.0,12.80804153]
[1744333484385,6.6262,1509.2,1509.0,7.851]
[1744333484589,6.62646,1509.1,1509.0,10.851]
[1744333484773,6.62646,1509.1,1509.0,7.851]
[1744333484966,6.62712,1509.0,1508.8,4.95704153]
[1744333485363,6.62653,1509.1,1508.8,12.80604153]
[1744333485792,6.62586,1509.3,1508.9,9.62711]
[1744333485993,6.62472,1509.5,1509.1,9.62623]
[1744333486193,6.62341,1509.8,1509.3,3.0]
[1744333486194,6.62355,1509.8,1509.3,3.0]
[1744333486356,14.78429,1509.8,1509.4,6.62491]
[1744333486691,8.16065,1509.8,1509.4,13.24987]
[1744333486859,1.5371,1509.8,1509.5,6.62457]
[1744333487054,6.62312,1509.9,1509.6,7.851]
[1744333487289,1.5371,1510.0,1509.6,7.851]
[1744333487588,19.53339709,1510.0,1509.6,7.851]
[1744333487766,19.53342709,1510.0,1509.6,14.47509]
[1744333487969,19.53342709,1510.0,1509.6,17.38075615]
[1744333488181,6.62318,1509.9,1509.6,10.75666615]
[1744333488493,6.6234,1509.8,1509.6,10.75666615]
[1744333489091,6.62318,1509.9,1509.6,10.75666615]
[1744333489477,6.28809709,1510.0,1509.6,17.38070615]
[1744333489681,12.91075709,1510.0,1509.6,24.00478615]
[1744333490394,8.15976,1510.0,1509.6,24.00478615]
[1744333490693,14.78252,1510.0,1509.6,17.38070615]
[1744333490851,6.62297,1509.9,1509.6,7.851]
[1744333491054,1.5371,1510.0,1509.6,7.851]
[1744333491279,6.62355,1509.8,1509.6,7.851]
[1744333491784,6.62383,1509.7,1509.6,7.851]
[1744333492183,6.62355,1509.8,1509.6,7.851]
[1744333492357,13.24731,1509.8,1509.6,7.851]
[1744333492754,6.62355,1509.8,1509.6,7.851]
[1744333495599,6.62302,1509.9,1509.6,7.851]
[1744333495757,6.62216,1510.1,1509.7,8.12794]
[1744333495961,6.62216,1510.1,1509.8,6.62322]
[1744333496897,6.62312,1509.9,1509.6,14.25560653]
[1744333497093,13.2463,1509.9,1509.6,12.80804153]
[1744333497285,6.62312,1509.9,1509.6,12.80804153]
[1744333498634,6.62312,1509.9,1509.6,19.43231153]
[1744333499124,6.62258,1510.0,1509.6,19.43231153]
[1744333499125,6.62383,1509.7,1509.6,12.80804153]
[1744333499327,6.62383,1509.7,1509.6,7.851]
[1744333500027,6.62449,1509.6,1509.3,9.4657]
[1744333500212,1.5057,1509.9,1509.4,9.62514]
[1744333500413,6.62402,1509.7,1509.4,9.62514]
[1744333500624,6.62375,1509.8,1509.4,16.25011]
[1744333500925,6.62279,1510.0,1509.6,13.24818]
[1744333501138,1.5057,1510.1,1509.6,9.57174153]
[1744333501139,8.12783,1510.1,1509.6,9.57174153]
[1744333501318,6.62164,1510.2,1509.9,6.62276]
[1744333501634,6.62245,1510.1,1509.8,3.0]
[1744333501933,6.62125,1510.3,1509.9,6.62264]
[1744333502097,11.37224709,1510.3,1509.9,1.6147]
[1744333502297,11.37224709,1510.3,1510.0,6.62228]
[1744333502630,11.37224709,1510.3,1510.0,3.0]
[1744333502838,17.99372709,1510.3,1510.0,3.0]
[1744333503530,6.62177,1510.2,1510.0,3.0]
[1744333503830,11.37224709,1510.3,1510.0,3.50382694]
[1744333504036,17.99384709,1510.3,1510.0,3.50382694]
[1744333504342,6.62251,1510.0,1509.9,4.95704153]
[1744333504519,1.5057,1510.2,1509.9,4.95704153]
[1744333504836,11.37222709,1510.3,1509.9,18.20234153]
[1744333505633,11.37222709,1510.3,1509.9,18.68991933]
[1744333505832,11.37222709,1510.3,1509.9,18.68996933]
[1744333506309,6.62123,1510.3,1510.0,6.62239]
[1744333507234,6.62123,1510.3,1510.0,3.0]
[1744333507407,6.62165,1510.2,1510.0,3.0]
[1744333508041,6.62123,1510.3,1510.0,3.0]
[1744333509029,6.62164,1510.2,1510.0,3.0]
[1744333509651,13.24451,1510.1,1509.9,4.95704153]
[1744333509810,6.62251,1510.0,1509.9,4.95704153]
[1744333510133,6.62424,1509.7,1509.5,6.57174153]
[1744333510322,13.24725,1509.8,1509.5,4.6147]
[1744333510631,6.62251,1510.0,1509.7,6.62367]
[1744333510833,8.12691,1510.3,1509.9,8.23747]
[1744333511033,6.62195,1510.2,1509.9,4.6147]
[1744333511196,8.12696,1510.3,1509.9,4.6147]
[1744333511197,8.12696,1510.3,1509.9,11.23755]
[1744333511397,14.74856,1510.3,1509.9,11.23755]
[1744333511629,8.12696,1510.3,1509.9,11.23755]
[1744333511835,1.5057,1510.3,1510.0,6.62224]
[1744333512002,6.6209,1510.4,1510.0,13.24461]
[1744333512201,6.62136,1510.3,1510.0,6.62224]
[1744333512402,6.62008,1510.6,1510.2,8.13494]
[1744333512624,4.75099709,1510.5,1510.2,16.48603515]
[1744333513135,4.75099709,1510.5,1510.3,6.621]
[1744333513539,6.62133,1510.3,1510.1,3.0]
[1744333514148,13.24182,1510.4,1510.1,3.0]
[1744333514448,6.62123,1510.3,1510.1,3.0]
[1744333514625,6.62079,1510.4,1510.1,3.0]
[1744333514949,6.62139,1510.3,1510.1,3.0]
[1744333515321,11.37142709,1510.5,1510.2,6.62157]
[1744333515939,4.75099709,1510.5,1510.2,8.13492]
[1744333516141,4.75099709,1510.5,1510.4,6.62076]
[1744333516342,4.75099709,1510.5,1510.4,16.09130153]
[1744333516831,4.75099709,1510.5,1510.4,16.59301312]
[1744333517009,4.75099709,1510.9,1510.6,6.61973]
[1744333517204,4.75099709,1510.9,1510.6,14.46473]
[1744333517646,11.36959709,1510.9,1510.6,14.46473]
[1744333517846,6.61917,1510.8,1510.6,7.845]
[1744333518020,6.6191,1510.8,1510.6,7.845]
[1744333518437,11.36957709,1510.9,1510.6,7.845]
[1744333518947,4.75099709,1510.9,1510.6,14.46472]
[1744333519105,4.75099709,1510.9,1510.6,16.211192]
[1744333520961,8.28462,1511.0,1510.7,6.61941]
[1744333521159,8.28381,1511.2,1510.8,8.1323]
[1744333521453,8.28381,1511.2,1510.8,14.75111]
[1744333521815,6.61741,1511.2,1510.8,14.75111]
[1744333522418,13.23489,1511.2,1510.8,14.75111]
[1744333522614,6.61686,1511.3,1510.9,6.61852]
[1744333522853,6.61686,1511.3,1510.9,13.23693]
[1744333523151,6.61686,1511.3,1511.0,7.843]
[1744333524853,6.61686,1511.3,1511.0,14.46108]
[1744333525154,6.61686,1511.3,1511.0,7.843]
[1744333525365,6.61753,1511.2,1511.0,7.843]
[1744333525663,6.61687,1511.3,1511.0,7.843]
[1744333525664,13.23395,1511.3,1511.0,7.843]
[1744333526158,6.61731,1511.2,1511.0,7.843]
[1744333526547,6.61687,1511.3,1511.0,7.843]
[1744333526855,13.23399,1511.3,1511.0,7.843]
[1744333527243,6.61687,1511.3,1511.0,7.843]
[1744333527570,6.61687,1511.3,1510.9,4.95704153]
[1744333527571,1.15012157,1511.3,1510.9,4.95704153]
[1744333527746,6.61813,1511.0,1510.9,4.95704153]
[1744333528146,6.61789,1511.1,1510.9,4.95704153]
[1744333528832,6.6173,1511.2,1510.9,4.95704153]
[1744333529033,6.61685,1511.3,1510.9,4.95704153]
[1744333529034,6.61685,1511.3,1510.9,13.19507153]
[1744333529360,14.89957,1511.4,1511.0,6.61797]
[1744333529859,6.61684,1511.3,1510.9,14.51472868]
[1744333530028,1.6664,1511.4,1510.9,14.51474868]
[1744333530029,6.61729,1511.2,1510.9,14.51474868]
[1744333530361,6.61697,1511.3,1510.9,14.51474868]
[1744333530558,6.61697,1511.3,1510.9,15.00183961]
[1744333530760,6.61787,1511.1,1510.7,4.6197]
[1744333530927,6.61883,1510.9,1510.7,4.6197]
[1744333531124,6.61821,1511.0,1510.7,4.6197]
[1744333531373,6.61778,1511.1,1510.8,6.61879]
[1744333531575,8.22682,1511.3,1510.9,6.61829]
[1744333531780,0.3863513,1511.5,1511.2,6.61691]
[1744333532073,0.3863513,1511.5,1511.4,6.61638]
[1744333532381,0.3863513,1511.5,1511.4,16.19312153]
[1744333532532,0.3863513,1511.5,1511.4,16.51624733]
[1744333532944,0.3863513,1511.5,1511.4,17.02179394]
[1744333533262,0.3863513,1511.5,1511.4,20.16974733]
[1744333533449,0.3863513,1511.5,1511.4,13.55336733]
[1744333534275,0.3863513,1511.5,1511.4,20.16974733]
[1744333537869,0.3863513,1511.5,1511.4,13.55336733]
[1744333538068,0.3863513,1511.5,1511.4,20.16974733]
[1744333538671,0.3863513,1511.5,1511.4,24.94865734]
[1744333539267,0.3863513,1511.5,1511.4,21.39136733]
[1744333540538,0.3863513,1511.5,1511.4,28.00774733]
[1744333544248,0.3863513,1511.5,1511.4,21.39136733]
[1744333545487,0.3863513,1511.5,1511.4,0.3231258]
[1744333545488,7.0022913,1511.5,1511.4,0.3231258]
[1744333545991,6.61641,1511.4,1511.2,4.95704153]
[1744333546190,7.0022913,1511.5,1511.3,3.0]
[1744333546483,7.0022913,1511.5,1511.3,10.831]
[1744333546484,0.3863513,1511.5,1511.3,10.831]
[1744333547646,6.61638,1511.4,1511.3,11.33234882]
[1744333547866,13.6185413,1511.5,1511.3,11.33234882]
[1744333548794,0.3863513,1511.5,1511.3,19.57809785]
[1744333549089,0.3863513,1511.5,1511.3,12.96128785]
[1744333550485,7.0023013,1511.5,1511.3,11.33234882]
[1744333550676,13.6186613,1511.5,1511.3,11.33234882]
[1744333550873,6.61638,1511.4,1511.3,7.831]
[1744333551192,8.16548,1511.4,1511.3,7.831]
[1744333552967,7.0023013,1511.5,1511.3,7.831]
[1744333553191,13.6185413,1511.5,1511.3,7.831]
[1744333553489,7.0023013,1511.5,1511.3,7.831]
[1744333553866,13.6185813,1511.5,1511.3,7.831]
[1744333554485,6.61638,1511.4,1511.3,7.831]
[1744333555293,7.0023013,1511.5,1511.3,7.831]
[1744333555462,0.3863513,1511.5,1511.3,7.831]
[1744333555668,7.0022913,1511.5,1511.3,7.831]
[1744333556191,0.3863513,1511.5,1511.3,14.44765]
[1744333556357,0.3863513,1511.5,1511.3,23.170742]
[1744333556554,0.3863513,1511.5,1511.3,16.554092]
[1744333557692,0.3863513,1511.5,1511.3,9.937472]
[1744333557894,13.6184613,1511.5,1511.4,0.28938508]
[1744333558094,15.2598613,1511.5,1511.4,0.28938508]
[1744333558391,6.61722,1511.3,1511.0,7.832]
[1744333559194,6.61722,1511.3,1511.0,16.69083115]
[1744333559502,8.6437213,1511.5,1511.1,13.23518]
[1744333559678,0.3863513,1511.5,1511.1,4.6134]
[1744333559995,0.3863513,1511.5,1511.3,6.61663]
[1744333560157,0.3863513,1511.5,1511.3,3.0]
[1744333560357,0.3863513,1511.5,1511.3,10.578337]
[1744333562093,6.61695,1511.3,1511.1,0.48684096]
[1744333562272,1.6414,1511.4,1511.0,10.07276115]
[1744333562472,8.2578,1511.4,1511.1,6.61755]
[1744333562698,1.6414,1511.4,1511.1,3.50187809]
[1744333562901,0.3863513,1511.5,1511.3,6.61678]
[1744333563269,0.3863513,1511.5,1511.3,6.61666]
[1744333563586,0.3863513,1511.5,1511.4,6.61638]
[1744333563762,0.3863513,1511.5,1511.4,7.939682]
[1744333564291,0.3863513,1511.5,1511.4,25.1501838]
[1744333565377,0.3863513,1511.5,1511.4,20.385082]
[1744333567102,0.3863513,1511.5,1511.4,18.771682]
[1744333567299,0.3863513,1511.5,1511.4,12.155302]
[1744333567499,0.3863513,1511.5,1511.4,10.832]
[1744333567711,0.3863513,1511.5,1511.0,11.3831418]
[1744333567712,1.6414,1511.4,1510.8,1.6134]
[1744333567863,1.6414,1511.2,1510.6,1.6134]
[1744333568062,6.61914,1510.8,1510.6,1.6134]
[1744333568261,6.61769,1511.1,1510.6,1.6134]
[1744333568463,6.6192,1510.8,1510.4,7.832]
[1744333568693,6.62023,1510.6,1510.4,7.832]
[1744333568890,6.62023,1510.6,1510.4,15.62690872]
[1744333569162,6.62032,1510.5,1510.4,7.79490872]
[1744333569380,8.26172,1510.5,1510.4,7.79490872]
[1744333571087,8.26172,1510.5,1510.4,7.79586062]
[1744333572103,8.26172,1510.5,1510.4,0.0009519]
[1744333572406,6.62076,1510.4,1510.1,6.62203]
[1744333572708,6.62162,1510.3,1509.9,56.726]
[1744333572906,6.62162,1510.3,1510.2,0.27900799]
[1744333573211,13.2431,1510.3,1510.2,0.27900799]
[1744333573395,13.2431,1510.3,1509.9,63.34893]
[1744333573614,6.62179,1510.2,1509.9,56.726]
[1744333574023,13.2428,1510.3,1509.9,63.34886]
[1744333574222,8.26174,1510.5,1510.1,6.62191]
[1744333574423,8.26174,1510.5,1510.2,6.62157]
[1744333575533,1.6414,1510.5,1510.2,6.62141]
[1744333575734,8.14126,1510.9,1510.5,6.62016]
[1744333575904,8.14126,1510.9,1510.5,13.24025]
[1744333576239,8.14126,1510.9,1510.8,6.619]
[1744333576240,4.75099709,1510.9,1510.8,6.619]
[1744333576397,4.75099709,1510.9,1510.6,7.828]
[1744333576601,6.61927,1510.8,1510.6,7.828]
[1744333576909,6.61927,1510.8,1510.3,16.24201]
[1744333576910,6.61972,1510.7,1510.3,16.24201]
[1744333577144,13.23959,1510.7,1510.4,1.624201]
[1744333577325,6.6206,1510.5,1510.2,64.581]
[1744333577626,6.6206,1510.5,1510.2,7.828]
[1744333577927,13.24125,1510.5,1510.2,7.828]
[1744333578328,6.61992,1510.6,1510.2,7.828]
[1744333578640,1.5225,1510.8,1510.0,1.5943]
[1744333578824,1.5225,1510.4,1509.8,0.48567759]
[1744333579011,1.5225,1510.4,1509.5,6.62456]
[1744333579012,6.62322,1509.9,1509.5,6.62456]
[1744333579212,8.14508,1510.0,1509.5,2.73326618]
[1744333579213,1.5225,1510.0,1509.5,2.73326618]
[1744333579417,6.62185,1510.2,1509.6,4.7651018]
[1744333579642,8.14297,1510.5,1509.9,3.0]
[1744333579799,1.5225,1510.5,1510.2,6.62129]
[1744333580430,6.6214,1510.3,1510.0,3.0]
[1744333580630,1.5225,1510.5,1510.0,3.0]
[1744333580631,6.62076,1510.4,1510.0,9.62239]
[1744333580830,6.62256,1510.0,1509.6,21.30578781]
[1744333581019,13.24537,1510.0,1509.6,16.54068601]
[1744333581215,6.62256,1510.0,1509.7,3.0]
[1744333581414,8.14462,1510.1,1509.7,9.62345]
[1744333581614,8.14462,1510.1,1509.6,9.91671601]
[1744333581615,8.1437,1510.3,1509.9,6.62273]
[1744333581842,8.1437,1510.3,1509.9,0.962273]
[1744333581843,1.5225,1510.3,1509.9,0.962273]
[1744333582010,6.62034,1510.5,1510.1,6.62184]
[1744333582205,8.69246,1510.6,1510.2,6.62147]
[1744333582206,8.14246,1510.6,1510.2,6.62147]
[1744333582544,6.62071,1510.5,1510.2,9.62161]
[1744333583056,1.5225,1510.6,1510.2,3.0]
[1744333583341,6.61944,1510.7,1510.1,1.5943]
[1744333583547,13.24225,1510.4,1510.1,4.5943]
[1744333583847,8.14359,1510.4,1510.1,9.62207]
[1744333584344,14.76463,1510.4,1510.1,3.0]
[1744333584541,8.14354,1510.4,1510.1,3.0]
[1744333584843,1.5225,1510.4,1510.1,9.62193]
[1744333585039,1.5225,1510.4,1510.1,12.53223726]
[1744333586047,8.14331,1510.4,1510.1,12.53223726]
[1744333586347,8.14331,1510.4,1510.1,3.0]
[1744333586558,6.62135,1510.3,1510.1,3.0]
[1744333587247,8.14331,1510.4,1509.7,14.45261]
[1744333587248,1.5225,1510.4,1509.7,14.45261]
[1744333587407,6.62213,1510.1,1509.7,16.08131]
[1744333587613,6.62284,1510.0,1509.7,9.4577]
[1744333587919,6.62284,1510.0,1509.8,0.28357052]
[1744333588129,13.24558,1510.0,1509.8,0.28357052]
[1744333588333,1.5765,1510.1,1509.8,6.90681052]
[1744333588542,8.19875,1510.1,1509.8,0.28357052]
[1744333588743,8.19875,1510.1,1509.8,6.90690052]
[1744333588948,1.5765,1510.1,1509.8,6.90690052]
[1744333589147,6.62267,1510.0,1509.8,0.28357052]
[1744333589481,8.19862,1510.1,1509.8,0.28357052]
[1744333589788,14.82106,1510.1,1509.8,0.28357052]
[1744333589929,8.19862,1510.1,1509.8,0.28357052]
[1744333590130,14.82099,1510.1,1509.8,0.28357052]
[1744333590326,1.5765,1510.1,1509.8,6.90673052]
[1744333590531,6.6217,1510.2,1509.8,8.53543052]
[1744333590741,1.5765,1510.5,1510.0,6.62214]
[1744333590937,8.19715,1510.5,1510.1,6.90576]
[1744333591154,6.62076,1510.4,1510.1,6.90576]
[1744333591660,8.19715,1510.5,1510.1,6.9059]
[1744333591834,14.8178,1510.5,1510.1,6.9059]
[1744333592034,6.62091,1510.4,1510.1,0.28385]
[1744333592295,6.62076,1510.4,1510.1,6.9059]
[1744333592969,6.62076,1510.4,1510.1,0.28385]
[1744333593472,6.62076,1510.4,1510.1,6.90591]
[1744333593783,6.32749709,1510.9,1510.5,6.62014]
[1744333593928,11.36963709,1510.9,1510.5,11.3852718]
[1744333594133,6.61919,1510.8,1510.6,3.0]
[1744333594335,6.61944,1510.7,1510.6,3.0]
[1744333594675,6.61919,1510.8,1510.6,3.0]
[1744333594836,1.5765,1510.7,1510.2,1.6287]
[1744333595030,6.62048,1510.5,1510.2,1.6287]
[1744333595226,13.2411,1510.5,1510.1,14.45205]
[1744333595673,8.19634,1510.7,1510.1,7.83]
[1744333595836,1.5765,1510.7,1510.4,6.62042]
[1744333596051,8.19516,1510.9,1510.5,6.62023]
[1744333596239,8.19516,1510.9,1510.5,13.24036]
[1744333596443,8.19516,1510.9,1510.5,6.62012]
[1744333596678,8.19516,1510.9,1510.5,13.24022]
[1744333596976,8.19516,1510.9,1510.5,13.72919077]
[1744333597289,8.19516,1510.9,1510.5,14.84219328]
[1744333597445,8.19513,1510.9,1510.5,1.60199328]
[1744333597645,6.61942,1510.8,1510.4,8.911452]
[1744333597846,6.61958,1510.7,1510.4,8.911452]
[1744333598151,13.23944,1510.7,1510.4,5.290742]
[1744333598360,6.61996,1510.6,1510.4,4.6287]
[1744333598566,1.5765,1510.9,1510.4,3.0]
[1744333598765,1.5765,1510.9,1510.5,6.62003]
[1744333598972,6.61828,1511.0,1510.7,6.61938]
[1744333599572,6.61902,1510.8,1510.6,3.0]
[1744333599890,6.61846,1511.0,1510.7,6.61944]
[1744333600196,8.19425,1511.1,1510.7,13.23872]
[1744333600580,14.81217,1511.1,1510.7,13.23872]
[1744333600785,14.8997,1511.3,1510.9,6.61845]
[1744333600988,6.61729,1511.2,1510.9,6.61845]
[1744333601775,6.61672,1511.4,1511.0,6.61774]
[1744333602093,6.61682,1511.3,1510.9,14.44848]
[1744333602591,6.61745,1511.2,1510.9,7.83]
[1744333602791,6.61745,1511.2,1511.0,0.27714081]
[1744333605912,8.6682613,1511.5,1511.0,6.89511081]
[1744333605913,13.23323,1511.4,1511.0,6.89511081]
[1744333606120,8.6682113,1511.5,1511.1,6.61757]
[1744333606304,6.61662,1511.4,1511.1,1.6279]
[1744333606617,7.0023713,1511.5,1511.2,0.27047606]
[1744333606823,0.3863513,1511.5,1511.2,8.24493]
[1744333607120,0.3863513,1511.5,1511.3,0.26965287]
[1744333607269,6.61638,1511.4,1511.3,0.26965287]
[1744333607706,6.61638,1511.4,1511.0,11.24581]
[1744333607896,6.61696,1511.3,1511.0,11.24581]
[1744333608616,6.61638,1511.4,1511.1,6.61768]
[1744333610206,13.233,1511.4,1511.0,17.86379]
[1744333610503,13.233,1511.4,1511.0,20.433169]
[1744333610504,6.61638,1511.4,1511.0,20.433169]
[1744333611125,13.23297,1511.4,1511.0,20.433169]
[1744333611311,6.61684,1511.3,1511.0,13.815189]
[1744333612526,1.6659,1511.4,1511.0,7.197279]
[1744333612822,1.6659,1511.4,1510.9,7.83]
[1744333612823,6.61746,1511.2,1510.9,7.83]
[1744333613003,6.61723,1511.3,1511.0,6.61793]
[1744333613612,7.0023413,1511.5,1511.1,6.61736]
[1744333613814,7.0023413,1511.5,1511.1,8.906996]
[1744333613996,0.3863513,1511.5,1511.4,6.61638]
[1744333614196,0.3863513,1511.5,1511.4,23.8283818]
[1744333615535,4.75099709,1512.0,1511.4,23.8283818]
[1744333615536,4.75099709,1512.0,1511.9,6.61419]
[1744333615715,4.75099709,1512.0,1511.9,16.722509]
[1744333616031,4.75099709,1512.0,1511.9,17.22113329]
[1744333616229,4.75099709,1512.0,1511.9,24.98623509]
[1744333616393,6.17629622,1512.3,1512.2,8.12828]
[1744333617342,6.17629622,1512.3,1512.2,3.0]
[1744333617518,6.17629622,1512.3,1512.2,9.61288]
[1744333617826,6.17629622,1512.3,1512.2,9.86540862]
[1744333618030,6.17629622,1512.3,1512.2,13.02865548]
[1744333619742,0.3,1512.4,1512.3,11.12784]
[1744333620040,0.3,1512.4,1512.3,23.96172335]
[1744333620402,0.3863513,1513.0,1512.8,6.60992]
[1744333620639,0.3863513,1513.0,1512.8,14.42492]
[1744333620839,0.3863513,1513.0,1512.9,6.60982]
[1744333621142,0.3863513,1513.0,1512.9,6.86160155]
[1744333621341,0.3863513,1513.0,1512.9,17.43700155]
[1744333621844,6.9957313,1513.0,1512.9,0.25178155]
[1744333622147,8.5024313,1513.0,1512.9,0.25178155]
[1744333622445,6.61069,1512.7,1512.6,10.815]
[1744333622839,6.61029,1512.8,1512.6,10.815]
[1744333623044,8.5024313,1513.0,1512.6,17.42607]
[1744333623345,6.61059,1512.8,1512.6,10.815]
[1744333623743,6.61057,1512.8,1512.6,10.815]
[1744333624242,6.61069,1512.7,1512.6,7.815]
[1744333625010,13.22167,1512.7,1512.4,9.06]
[1744333625206,8.11798,1512.6,1512.4,3.0]
[1744333625463,14.72948,1512.6,1512.4,3.0]
[1744333625611,8.11798,1512.6,1512.4,3.0]
[1744333626018,1.5067,1512.6,1512.4,3.0]
[1744333626547,6.61071,1512.7,1512.4,3.0]
[1744333626755,13.2217,1512.7,1512.4,3.48363753]
[1744333626951,13.2217,1512.7,1512.4,0.48363753]
[1744333626952,6.61118,1512.6,1512.4,0.48363753]
[1744333627110,13.22257,1512.6,1512.3,62.786]
[1744333627315,6.61118,1512.6,1512.3,62.786]
[1744333627548,6.61073,1512.7,1512.3,69.39838]
[1744333627851,6.61143,1512.6,1512.3,62.786]
[1744333628020,13.22286,1512.6,1512.3,62.786]
[1744333628213,0.3863513,1513.0,1512.4,4.5154]
[1744333628417,8.5024913,1513.0,1512.6,9.61112]
[1744333628747,6.61006,1512.9,1512.6,10.813]
[1744333628955,0.3863513,1513.0,1512.8,6.60984]
[1744333629514,0.3863513,1513.0,1512.9,9.06]
[1744333629718,0.3863513,1513.0,1512.9,18.752204]
[1744333630356,0.3863513,1513.0,1512.9,19.25730239]
[1744333630521,0.3863513,1513.0,1512.9,20.1430262]
[1744333630849,0.3863513,1513.0,1512.9,19.80730239]
[1744333631237,2.0567,1513.7,1513.4,6.60748]
[1744333631412,2.0567,1513.7,1513.4,16.01368]
[1744333631413,0.55,1513.7,1513.4,16.01368]
[1744333632352,0.55,1513.7,1513.4,28.68117]
[1744333632518,7.15638,1513.7,1513.4,15.4662]
[1744333632718,6.60677,1513.6,1513.4,13.873]
[1744333632923,6.60677,1513.6,1513.5,0.2368483]
[1744333633661,8.10797,1513.6,1513.5,0.2368483]
[1744333634052,1.5012,1513.6,1513.0,6.06]
[1744333634252,8.10883,1513.4,1512.9,6.06]
[1744333634561,8.10883,1513.4,1512.8,6.06]
[1744333634562,6.60943,1513.0,1512.8,6.06]
[1744333634768,6.60868,1513.2,1512.9,3.0]
[1744333635129,8.10889,1513.4,1513.0,6.60937]
[1744333635453,1.5012,1513.4,1513.0,6.06]
[1744333635633,1.5012,1513.4,1513.1,4.7651018]
[1744333635828,1.5012,1513.6,1513.2,7.08482018]
[1744333636055,8.10813,1513.6,1513.2,0.47651018]
[1744333636246,8.10813,1513.6,1513.2,13.69320018]
[1744333636456,1.5012,1513.6,1513.3,6.60806]
[1744333636658,0.55,1513.7,1513.4,6.60763]
[1744333636857,7.1566,1513.7,1513.3,14.19644802]
[1744333637045,0.55,1513.7,1513.4,6.60744]
[1744333637584,0.73087376,1514.5,1514.4,6.60327]
[1744333637868,6.59848,1515.5,1514.9,1.5932]
[1744333638067,6.59961,1515.3,1514.9,4.5932]
[1744333638270,6.60033,1515.1,1514.8,7.804]
[1744333638471,6.6009,1515.0,1514.8,0.4874574]
[1744333638772,1.5012,1515.2,1514.3,58.2692]
[1744333639068,1.5012,1515.2,1514.4,3.0]
[1744333639069,6.6018,1514.8,1514.4,3.0]
[1744333639369,6.6018,1514.8,1514.2,25.7759418]
[1744333639370,6.60208,1514.7,1514.2,7.803]
[1744333639876,6.60208,1514.7,1514.2,14.40704]
[1744333640067,1.5012,1514.8,1514.2,14.40704]
[1744333640258,8.10274,1514.8,1514.2,21.0109]
[1744333640453,8.10274,1514.8,1514.2,14.40686]
[1744333640759,8.10274,1514.8,1514.3,6.60368]
[1744333641069,8.10274,1514.8,1514.3,7.09930874]
[1744333641274,14.70465,1514.8,1514.3,0.49562874]
[1744333641480,8.10274,1514.8,1514.2,6.60385]
[1744333641787,6.60231,1514.7,1514.4,0.19176868]
[1744333641967,8.10274,1514.8,1514.3,6.60343]
[1744333642170,1.5012,1514.8,1514.5,0.19176868]
[1744333642349,6.60066,1515.0,1514.5,6.60249]
[1744333642683,6.60178,1514.8,1514.6,0.19176868]
[1744333642978,6.60178,1514.8,1514.3,12.66344]
[1744333643192,8.65298,1514.8,1514.7,0.19176868]
[1744333643355,6.60218,1514.7,1514.2,10.10392709]
[1744333643752,13.20445,1514.7,1514.2,10.10392709]
[1744333644079,1.5012,1514.8,1514.4,6.60327]
[1744333644080,8.10277,1514.8,1514.4,6.60327]
[1744333644379,8.10277,1514.8,1514.3,6.60363]
[1744333644788,8.10277,1514.8,1514.3,6.60351]
[1744333644942,14.70463,1514.8,1514.3,6.60351]
[1744333645283,6.60204,1514.7,1514.2,15.38378878]
[1744333645483,6.60242,1514.6,1514.2,15.38378878]
[1744333645688,14.70454,1514.8,1514.2,15.38361878]
[1744333645847,14.70454,1514.8,1514.3,6.60335]
[1744333646046,6.60214,1514.7,1514.3,6.60335]
[1744333646260,6.60264,1514.6,1514.2,8.27975169]
[1744333646455,13.20547,1514.6,1514.2,3.0]
[1744333647085,6.60264,1514.6,1514.2,9.60408]
[1744333647403,13.20531,1514.6,1514.2,9.60408]
[1744333647884,6.60264,1514.6,1514.3,0.19511997]
[1744333648273,1.5012,1514.8,1514.3,0.19511997]
[1744333648274,8.10277,1514.8,1514.3,6.79862997]
[1744333648469,6.60197,1514.7,1514.4,6.60317]
[1744333648645,6.60197,1514.7,1514.3,6.60351]
[1744333648846,6.60197,1514.7,1514.0,1.5932]
[1744333648847,6.60334,1514.4,1514.0,13.47795169]
[1744333649083,6.6033,1514.4,1514.0,13.47772169]
[1744333649296,6.60286,1514.5,1514.1,6.60433]
[1744333649445,6.60241,1514.6,1514.3,6.60371]
[1744333650064,13.20418,1514.7,1514.3,6.60371]